bitfinex/quotes_BTCUSD_20250607
["timestamp","ask_amount","ask_price","bid_price","bid_amount"]
[1749317833826,5.01227856,105630.0,105620.0,0.004]
[1749317834066,4.94887216,105630.0,105620.0,0.036]
[1749317834282,4.99906691,105630.0,105620.0,0.036]
[1749317834495,5.01683228,105630.0,105620.0,0.036]
[1749317834707,5.00572883,105630.0,105620.0,0.036]
[1749317834922,5.01683204,105630.0,105620.0,0.036]
[1749317835134,5.00572883,105630.0,105620.0,0.036]
[1749317835329,4.99906691,105630.0,105620.0,0.036]
[1749317835766,5.00572883,105630.0,105620.0,0.036]
[1749317835980,5.02349396,105630.0,105620.0,0.036]
[1749317836189,5.00572883,105630.0,105620.0,0.036]
[1749317836399,5.06138572,105630.0,105620.0,0.036]
[1749317836611,5.11323152,105630.0,105620.0,0.036]
[1749317836824,5.10212836,105630.0,105620.0,0.036]
[1749317837034,5.1198936,105630.0,105620.0,0.036]
[1749317837241,5.11989369,105630.0,105620.0,0.036]
[1749317837449,5.10212838,105630.0,105620.0,0.036]
[1749317837660,5.09546639,105630.0,105620.0,0.036]
[1749317837887,5.10212836,105630.0,105620.0,0.036]
[1749317838093,5.11989372,105630.0,105620.0,0.036]
[1749317838574,5.09546639,105630.0,105620.0,0.036]
[1749317838786,5.11323177,105630.0,105620.0,0.036]
[1749317838996,5.11323187,105630.0,105620.0,0.036]
[1749317839210,5.09546639,105630.0,105620.0,0.036]
[1749317839424,5.11323834,105630.0,105620.0,0.036]
[1749317839661,5.11990277,105630.0,105620.0,0.036]
[1749317839872,5.10213086,105630.0,105620.0,0.036]
[1749317840081,5.10213087,105630.0,105620.0,0.036]
[1749317840731,5.11323836,105630.0,105620.0,0.036]
[1749317840953,5.11990285,105630.0,105620.0,0.036]
[1749317841165,5.11323843,105630.0,105620.0,0.036]
[1749317841349,5.11323838,105630.0,105620.0,0.036]
[1749317841593,5.0168389,105630.0,105620.0,0.036]
[1749317841815,5.02350341,105630.0,105620.0,0.036]
[1749317842218,5.01683895,105630.0,105620.0,0.036]
[1749317842404,5.02350346,105630.0,105620.0,0.036]
[1749317842643,5.02350341,105630.0,105620.0,0.036]
[1749317843048,5.02350344,105630.0,105620.0,0.036]
[1749317843253,5.00573141,105630.0,105620.0,0.036]
[1749317843455,5.01683892,105630.0,105620.0,0.036]
[1749317843632,5.02350337,105630.0,105620.0,0.036]
[1749317843839,5.02350341,105630.0,105620.0,0.036]
[1749317844042,4.99906691,105630.0,105620.0,0.036]
[1749317844239,5.0057314,105630.0,105620.0,0.036]
[1749317844446,5.02350337,105630.0,105620.0,0.036]
[1749317844629,4.99906691,105630.0,105620.0,0.036]
[1749317844823,5.01683892,105630.0,105620.0,0.036]
[1749317845046,5.00573141,105630.0,105620.0,0.036]
[1749317845227,5.00573141,105630.0,105620.0,0.0204]
[1749317845432,5.00573142,105630.0,105620.0,0.0204]
[1749317845661,4.99906691,105630.0,105620.0,0.0204]
[1749317845869,5.00573141,105630.0,105620.0,0.0204]
[1749317846098,5.01683896,105630.0,105620.0,0.0204]
[1749317846315,5.0168389,105630.0,105620.0,0.0204]
[1749317846524,4.99906691,105630.0,105620.0,0.0204]
[1749317846948,5.01683892,105630.0,105620.0,0.0204]
[1749317847172,5.20421291,105630.0,105620.0,0.004]
[1749317847409,1.07941043,105630.0,105620.0,0.004]
[1749317847626,5.19754868,105630.0,105620.0,0.004]
[1749317848055,5.19754809,105630.0,105620.0,0.00360615]
[1749317848288,5.17977579,105630.0,105620.0,0.00360615]
[1749317848735,5.19754818,105630.0,105620.0,0.00360615]
[1749317848957,5.20421281,105630.0,105620.0,0.00360615]
[1749317849162,5.17977579,105630.0,105620.0,0.00360615]
[1749317849371,5.18644042,105630.0,105620.0,0.00360615]
[1749317849596,5.19754815,105630.0,105620.0,0.00360615]
[1749317850025,5.20421271,105630.0,105620.0,0.00360615]
[1749317850461,5.18644041,105630.0,105620.0,0.00360615]
[1749317850679,5.17977579,105630.0,105620.0,0.00360615]
[1749317851352,5.20421273,105630.0,105620.0,0.00360615]
[1749317851565,5.19754811,105630.0,105620.0,0.00360615]
[1749317851770,5.18644041,105630.0,105620.0,0.00360615]
[1749317851979,5.17977579,105630.0,105620.0,0.00360615]
[1749317852407,5.18644042,105630.0,105620.0,0.00360615]
[1749317852604,5.17977579,105630.0,105620.0,0.00360615]
[1749317852805,5.19754816,105630.0,105620.0,0.00360615]
[1749317853019,5.17977579,105630.0,105620.0,0.00360615]
[1749317853907,5.19754821,105630.0,105620.0,0.00360615]
[1749317854123,5.18644034,105630.0,105620.0,0.00360615]
[1749317854340,5.17977579,105630.0,105620.0,0.00360615]
[1749317854564,1.07274519,105630.0,105620.0,0.00360615]
[1749317854780,5.19754819,105630.0,105620.0,0.00360615]
[1749317855021,5.17977579,105630.0,105620.0,0.00360615]
[1749317855233,5.19754813,105630.0,105620.0,0.00360615]
[1749317855441,5.17977579,105630.0,105620.0,0.00360615]
[1749317855865,5.14069195,105630.0,105620.0,0.00360615]
[1749317856082,5.22286627,105630.0,105620.0,0.00360615]
[1749317856321,4.72818847,105610.0,105600.0,0.0343]
[1749317856542,4.9631542,105610.0,105600.0,0.0343]
[1749317856761,5.01331427,105610.0,105600.0,0.0181]
[1749317856974,5.04845006,105610.0,105600.0,0.0181]
[1749317857209,5.13007939,105610.0,105600.0,0.0181]
[1749317857406,5.47366501,105610.0,105600.0,0.002]
[1749317857686,1.32687866,105610.0,105600.0,0.00304791]
[1749317857903,1.34465478,105610.0,105600.0,0.00304791]
[1749317858116,5.44501573,105610.0,105600.0,0.00204791]
[1749317858345,5.47869204,105610.0,105600.0,0.00304791]
[1749317858581,5.46858191,105610.0,105600.0,0.00304791]
[1749317858800,5.4685819,105610.0,105600.0,0.00304791]
[1749317859039,5.46191573,105610.0,105600.0,0.00304791]
[1749317859476,5.48635882,105610.0,105600.0,0.00304791]
[1749317859685,5.46858206,105610.0,105600.0,0.00204791]
[1749317860114,5.48735894,105610.0,105600.0,0.00204791]
[1749317860322,5.47145894,105610.0,105600.0,0.00204791]
[1749317860531,5.4647926,105610.0,105600.0,0.00204791]
[1749317860736,5.45368205,105610.0,105600.0,0.00204791]
[1749317860973,5.44701573,105610.0,105600.0,0.00204791]
[1749317861186,5.46479259,105610.0,105600.0,0.00204791]
[1749317861407,5.44701573,105610.0,105600.0,0.00204791]
[1749317861618,5.46479251,105610.0,105600.0,0.00204791]
[1749317861839,5.47145889,105610.0,105600.0,0.00204791]
[1749317862055,5.45368204,105610.0,105600.0,0.00204791]
[1749317862262,5.44701573,105610.0,105600.0,0.00204791]
[1749317862475,5.50927405,105610.0,105600.0,0.00204791]
[1749317862711,5.48483115,105610.0,105600.0,0.00204791]
[1749317862925,5.46876442,105610.0,105600.0,0.00204791]
[1749317863134,5.47987483,105610.0,105600.0,0.00204791]
[1749317863346,5.46209818,105610.0,105600.0,0.00204791]
[1749317863784,5.46876442,105610.0,105600.0,0.00204791]
[1749317864042,5.17517818,105610.0,105600.0,0.00204791]
[1749317864251,5.50749253,105610.0,105600.0,0.00204791]
[1749317864465,5.52526893,105610.0,105600.0,0.00204791]
[1749317864671,5.50749253,105610.0,105600.0,0.00204791]
[1749317864895,5.52526894,105610.0,105600.0,0.00204791]
[1749317865330,5.1576151,105610.0,105600.0,0.00204791]
[1749317865555,5.00533617,105610.0,105600.0,0.03384791]
[1749317865776,5.00533588,105610.0,105600.0,0.03384791]
[1749317865988,4.99866972,105610.0,105600.0,0.03384791]
[1749317866199,4.98756015,105610.0,105600.0,0.03384791]
[1749317866405,5.0053354,105610.0,105600.0,0.03384791]
[1749317866626,4.96085429,105610.0,105600.0,0.03384791]
[1749317866834,4.943079,105610.0,105600.0,0.03384791]
[1749317867087,4.94974456,105610.0,105600.0,0.03384791]
[1749317867355,4.96751927,105610.0,105600.0,0.03384791]
[1749317867601,5.030359,105610.0,105600.0,0.03384791]
[1749317867823,4.98702446,105610.0,105600.0,0.03384791]
[1749317868087,5.05479895,105610.0,105600.0,0.03384791]
[1749317868358,4.9981336,105610.0,105600.0,0.03384791]
[1749317868565,4.99813362,105610.0,105600.0,0.03384791]
[1749317868787,5.04813354,105610.0,105600.0,0.03384791]
[1749317869250,4.89631268,105610.0,105600.0,0.03384791]
[1749317869468,4.88520356,105610.0,105600.0,0.03384791]
[1749317869682,4.90297799,105610.0,105600.0,0.03384791]
[1749317870145,4.90297798,105610.0,105600.0,0.03384791]
[1749317870435,4.88520355,105610.0,105600.0,0.03384791]
[1749317870643,4.90297796,105610.0,105600.0,0.03384791]
[1749317870847,4.89631256,105610.0,105600.0,0.03384791]
[1749317871048,4.90297796,105610.0,105600.0,0.03384791]
[1749317871508,4.88520355,105610.0,105600.0,0.03384791]
[1749317871709,4.90297796,105610.0,105600.0,0.03384791]
[1749317871942,4.89631256,105610.0,105600.0,0.03384791]
[1749317872142,4.88520355,105610.0,105600.0,0.03384791]
[1749317872351,4.87853815,105610.0,105600.0,0.03384791]
[1749317872828,4.91895879,105610.0,105600.0,0.03384791]
[1749317873082,4.92560912,105610.0,105600.0,0.03384791]
[1749317873548,4.91895902,105610.0,105600.0,0.03384791]
[1749317874000,4.92560943,105610.0,105600.0,0.03384791]
[1749317874625,4.96342485,105610.0,105600.0,0.03384791]
[1749317875251,4.96342511,105610.0,105600.0,0.03384791]
[1749317875668,4.96342502,105610.0,105600.0,0.03384791]
[1749317875894,4.96342494,105610.0,105600.0,0.03384791]
[1749317876287,4.96342488,105610.0,105600.0,0.03384791]
[1749317876717,4.96342491,105610.0,105600.0,0.03384791]
[1749317876963,4.96342504,105610.0,105600.0,0.03384791]
[1749317877180,4.94569046,105610.0,105600.0,0.03384791]
[1749317877402,4.94569058,105610.0,105600.0,0.03384791]
[1749317877617,4.95677489,105610.0,105600.0,0.03384791]
[1749317877830,4.96342518,105610.0,105600.0,0.03384791]
[1749317878483,4.96343744,105610.0,105600.0,0.03384791]
[1749317878695,4.95680728,105610.0,105600.0,0.03384791]
[1749317878916,4.96347027,105610.0,105600.0,0.03384791]
[1749317879128,4.94570283,105610.0,105600.0,0.03384791]
[1749317879366,4.93904,105610.0,105600.0,0.03384791]
[1749317879573,4.94570279,105610.0,105600.0,0.03384791]
[1749317879783,4.94570274,105610.0,105600.0,0.01864791]
[1749317879992,4.95680727,105610.0,105600.0,0.01864791]
[1749317880243,4.93904,105610.0,105600.0,0.01864791]
[1749317880445,4.94570272,105610.0,105600.0,0.01864791]
[1749317880662,4.95680732,105610.0,105600.0,0.01864791]
[1749317880885,4.93904,105610.0,105600.0,0.01864791]
[1749317881086,4.96347017,105610.0,105600.0,0.01864791]
[1749317881292,4.96347005,105610.0,105600.0,0.01864791]
[1749317881519,4.94570275,105610.0,105600.0,0.01864791]
[1749317881727,4.96347007,105610.0,105600.0,0.01864791]
[1749317881931,4.96347005,105610.0,105600.0,0.01864791]
[1749317882137,4.96346992,105610.0,105600.0,0.01864791]
[1749317882566,4.93904,105610.0,105600.0,0.01864791]
[1749317882783,4.96347003,105610.0,105600.0,0.01864791]
[1749317882994,4.94570273,105610.0,105600.0,0.01864791]
[1749317883233,4.91068939,105610.0,105600.0,0.01864791]
[1749317883455,4.92845683,105610.0,105600.0,0.01864791]
[1749317883673,4.92845676,105610.0,105600.0,0.01864791]
[1749317883882,4.91068939,105610.0,105600.0,0.01864791]
[1749317884104,4.92845675,105610.0,105600.0,0.01864791]
[1749317884318,4.93511948,105610.0,105600.0,0.01864791]
[1749317884575,4.91068939,105610.0,105600.0,0.01864791]
[1749317884785,4.91735211,105610.0,105600.0,0.01864791]
[1749317884994,4.92845838,105610.0,105600.0,0.01864791]
[1749317885209,4.91068939,105610.0,105600.0,0.01864791]
[1749317885435,4.9284584,105610.0,105600.0,0.01864791]
[1749317885644,0.84271188,105610.0,105600.0,0.01864791]
[1749317885862,4.97417827,105610.0,105600.0,0.01864791]
[1749317886072,4.96751488,105610.0,105600.0,0.01864791]
[1749317886281,4.9852839,105610.0,105600.0,0.01864791]
[1749317886504,4.92845843,105610.0,105600.0,0.01864791]
[1749317886717,4.96751488,105610.0,105600.0,0.01864791]
[1749317886923,4.98528387,105610.0,105600.0,0.01864791]
[1749317887144,4.91068939,105610.0,105600.0,0.01864791]
[1749317887355,4.99194725,105610.0,105600.0,0.01864791]
[1749317887563,4.98528391,105610.0,105600.0,0.01864791]
[1749317887774,4.97417827,105610.0,105600.0,0.01864791]
[1749317888000,4.93512177,105610.0,105600.0,0.01864791]
[1749317888210,4.97417825,105610.0,105600.0,0.01864791]
[1749317888434,4.99194733,105610.0,105600.0,0.01864791]
[1749317888863,4.9919474,105610.0,105600.0,0.01864791]
[1749317889076,4.99194728,105610.0,105600.0,0.01864791]
[1749317889310,4.98528392,105610.0,105600.0,0.01864791]
[1749317889527,4.97417827,105610.0,105600.0,0.01864791]
[1749317889777,4.9852839,105610.0,105600.0,0.01864791]
[1749317889995,4.96751488,105610.0,105600.0,0.01864791]
[1749317890216,4.97417829,105610.0,105600.0,0.01864791]
[1749317890430,4.97417823,105610.0,105600.0,0.01864791]
[1749317890641,4.99194732,105610.0,105600.0,0.01864791]
[1749317890849,4.96751488,105610.0,105600.0,0.01864791]
[1749317891105,4.98528389,105610.0,105600.0,0.01864791]
[1749317891328,4.98528385,105610.0,105600.0,0.01864791]
[1749317891551,4.97417824,105610.0,105600.0,0.01864791]
[1749317891759,4.99194728,105610.0,105600.0,0.01864791]
[1749317892181,4.9919473,105610.0,105600.0,0.01864791]
[1749317892367,4.96751488,105610.0,105600.0,0.01864791]
[1749317892582,4.97417826,105610.0,105600.0,0.01864791]
[1749317892784,4.9852839,105610.0,105600.0,0.01864791]
[1749317893126,4.97417826,105610.0,105600.0,0.01864791]
[1749317893539,4.98528389,105610.0,105600.0,0.01864791]
[1749317893729,4.98205573,105610.0,105600.0,0.01864791]
[1749317893940,4.98205573,105610.0,105600.0,0.00204791]
[1749317893941,5.12973853,105610.0,105600.0,0.00204791]
[1749317894154,5.06482481,105610.0,105600.0,0.00204791]
[1749317894569,5.04982482,105610.0,105600.0,0.01704791]
[1749317894774,5.05648823,105610.0,105600.0,0.01704791]
[1749317895411,5.04982483,105610.0,105600.0,0.01704791]
[1749317895617,5.00090372,105610.0,105600.0,0.01704791]
[1749317895849,5.02533623,105610.0,105600.0,0.01704791]
[1749317896060,5.01423054,105610.0,105600.0,0.01704791]
[1749317896328,5.03199964,105610.0,105600.0,0.01704791]
[1749317896531,5.01423054,105610.0,105600.0,0.01704791]
[1749317896741,5.01423055,105610.0,105600.0,0.01704791]
[1749317896956,5.03199967,105610.0,105600.0,0.01704791]
[1749317897191,5.01423054,105610.0,105600.0,0.01704791]
[1749317897398,5.03199964,105610.0,105600.0,0.01704791]
[1749317897608,5.05760907,105610.0,105600.0,0.01704791]
[1749317897838,5.06871477,105610.0,105600.0,0.01704791]
[1749317898060,5.07537817,105610.0,105600.0,0.01704791]
[1749317898563,5.03199964,105610.0,105600.0,0.01704791]
[1749317899015,5.00756713,105610.0,105600.0,0.01704791]
[1749317899228,5.02533623,105610.0,105600.0,0.01704791]
[1749317899436,5.10147054,105610.0,105600.0,0.01704791]
[1749317899841,5.09480713,105610.0,105600.0,0.01704791]
[1749317900068,5.11923964,105610.0,105600.0,0.01704791]
[1749317900274,0.99443664,105610.0,105600.0,0.01704791]
[1749317900476,5.09480713,105610.0,105600.0,0.01704791]
[1749317900835,5.11923963,105610.0,105600.0,0.01704791]
[1749317901003,5.11257622,105610.0,105600.0,0.01704791]
[1749317901210,0.97666754,105610.0,105600.0,0.01704791]
[1749317901416,5.11923963,105610.0,105600.0,0.01704791]
[1749317901618,5.09480713,105610.0,105600.0,0.01704791]
[1749317901926,5.11257622,105610.0,105600.0,0.01704791]
[1749317902129,5.11924106,105610.0,105600.0,0.01704791]
[1749317902331,5.09349627,105610.0,105600.0,0.01704791]
[1749317902558,5.10016112,105610.0,105600.0,0.01704791]
[1749317902741,5.1112692,105610.0,105600.0,0.01704791]
[1749317902944,5.09349627,105610.0,105600.0,0.01704791]
[1749317903188,5.10016112,105610.0,105600.0,0.01704791]
[1749317903392,5.11793404,105610.0,105600.0,0.01704791]
[1749317903596,5.10016111,105610.0,105600.0,0.01754773]
[1749317904027,5.11793426,105610.0,105600.0,0.01754773]
[1749317904336,5.10016111,105610.0,105600.0,0.01754773]
[1749317904544,5.14237234,105610.0,105600.0,0.01754773]
[1749317904752,5.11793426,105610.0,105600.0,0.01754773]
[1749317905375,5.12459919,105610.0,105600.0,0.01754773]
[1749317905792,5.14237234,105610.0,105600.0,0.01754773]
[1749317906457,5.12459919,105610.0,105600.0,0.01754773]
[1749317906661,5.14237234,105610.0,105600.0,0.01754773]
[1749317906799,5.03069426,105610.0,105600.0,0.01754773]
[1749317907002,5.03244591,105610.0,105600.0,0.01754773]
[1749317907238,5.00800783,105610.0,105600.0,0.01754773]
[1749317907485,5.02578098,105610.0,105600.0,0.01754773]
[1749317907718,5.03244591,105610.0,105600.0,0.01754773]
[1749317908353,5.01467265,105610.0,105600.0,0.01754773]
[1749317908569,5.00800783,105610.0,105600.0,0.01754773]
[1749317908805,5.07036207,105610.0,105600.0,0.01754773]
[1749317909016,5.00800783,105610.0,105600.0,0.01754773]
[1749317909445,5.0257807,105610.0,105600.0,0.01754773]
[1749317909664,5.03244552,105610.0,105600.0,0.01754773]
[1749317911200,5.01467265,105610.0,105600.0,0.01754773]
[1749317911429,5.03244553,105610.0,105600.0,0.01754773]
[1749317911647,5.03244552,105610.0,105600.0,0.01754773]
[1749317912719,5.0257807,105610.0,105600.0,0.01754773]
[1749317912936,5.03244552,105610.0,105600.0,0.01754773]
[1749317913565,0.90764306,105610.0,105600.0,0.01754773]
[1749317913804,5.00800783,105610.0,105600.0,0.01754773]
[1749317914058,5.0146728,105610.0,105600.0,0.01754773]
[1749317914275,5.03244606,105610.0,105600.0,0.01754773]
[1749317914481,5.0146728,105610.0,105600.0,0.01754773]
[1749317914701,5.03244606,105610.0,105600.0,0.01754773]
[1749317915400,5.03244642,105610.0,105600.0,0.01754773]
[1749317915617,5.03244739,105610.0,105600.0,0.01754773]
[1749317915830,5.0324475,105610.0,105600.0,0.01754773]
[1749317916484,5.02578214,105610.0,105600.0,0.01754773]
[1749317916705,5.0324475,105610.0,105600.0,0.01754773]
[1749317917571,5.02578214,105610.0,105600.0,0.01754773]
[1749317917811,5.0324475,105610.0,105600.0,0.01754773]
[1749317918240,5.00800783,105610.0,105600.0,0.01754773]
[1749317918443,5.0324475,105610.0,105600.0,0.01754773]
[1749317918628,5.0324475,105610.0,105600.0,0.01754774]
[1749317919052,5.01467319,105610.0,105600.0,0.01754774]
[1749317919289,5.00800783,105610.0,105600.0,0.01754774]
[1749317919493,5.0324475,105610.0,105600.0,0.01754774]
[1749317919684,5.01467319,105610.0,105600.0,0.01754774]
[1749317919898,5.0324475,105610.0,105600.0,0.01754774]
[1749317920752,0.9076445,105610.0,105600.0,0.01754774]
[1749317920960,5.01467321,105610.0,105600.0,0.01754774]
[1749317921171,5.05259153,105610.0,105600.0,0.01754774]
[1749317921674,5.0703659,105610.0,105600.0,0.01754774]
[1749317922499,5.07036596,105610.0,105600.0,0.01754774]
[1749317923176,5.04592615,105610.0,105600.0,0.01754774]
[1749317923379,5.07036596,105610.0,105600.0,0.01754774]
[1749317923589,5.04592615,105610.0,105600.0,0.01754774]
[1749317923804,5.0699439,105610.0,105600.0,0.01667699]
[1749317924456,5.04550409,105610.0,105600.0,0.01667699]
[1749317924665,5.05216951,105610.0,105600.0,0.01667699]
[1749317924883,5.06994397,105610.0,105600.0,0.01667699]
[1749317926369,5.06327855,105610.0,105600.0,0.01667699]
[1749317926581,5.05216951,105610.0,105600.0,0.01667699]
[1749317926801,5.06994435,105610.0,105600.0,0.01667699]
[1749317927011,5.04550409,105610.0,105600.0,0.01667699]
[1749317927225,5.06994435,105610.0,105600.0,0.01667699]
[1749317927641,5.05216961,105610.0,105600.0,0.01667699]
[1749317927868,5.06327885,105610.0,105600.0,0.016677]
[1749317928091,5.05216962,105610.0,105600.0,0.016677]
[1749317928298,5.04550409,105610.0,105600.0,0.016677]
[1749317928710,5.06994438,105610.0,105600.0,0.016677]
[1749317929599,5.00540353,105610.0,105600.0,0.016677]
[1749317929821,5.00540353,105610.0,105600.0,0.031877]
[1749317929822,4.92701588,105610.0,105600.0,0.031877]
[1749317930041,4.88909528,105610.0,105600.0,0.031877]
[1749317930254,4.86065664,105610.0,105600.0,0.031877]
[1749317930467,4.83621943,105610.0,105600.0,0.03187701]
[1749317930701,4.84288398,105610.0,105600.0,0.03187701]
[1749317930910,4.86065609,105610.0,105600.0,0.03187701]
[1749317931118,4.86062144,105610.0,105600.0,0.03187701]
[1749317931339,4.86062155,105610.0,105600.0,0.03187701]
[1749317931549,4.86062169,105610.0,105600.0,0.03187701]
[1749317931766,4.84287459,105610.0,105600.0,0.03187701]
[1749317931978,4.83621943,105610.0,105600.0,0.03187701]
[1749317932196,4.86062165,105610.0,105600.0,0.03187701]
[1749317932407,4.83621943,105610.0,105600.0,0.03187701]
[1749317932622,4.86062186,105610.0,105600.0,0.03187701]
[1749317933299,4.83621943,105610.0,105600.0,0.03187701]
[1749317933510,4.86062202,105610.0,105600.0,0.03187701]
[1749317933723,4.86062206,105610.0,105600.0,0.03187701]
[1749317933930,4.85396673,105610.0,105600.0,0.03187701]
[1749317934140,4.86061965,105610.0,105600.0,0.03187701]
[1749317934357,4.86061965,105610.0,105600.0,0.03187702]
[1749317935034,4.88905793,105610.0,105600.0,0.03187702]
[1749317935218,4.86062033,105610.0,105600.0,0.03187702]
[1749317935467,4.88240318,105610.0,105600.0,0.03187702]
[1749317935702,4.86465728,105610.0,105600.0,0.03187702]
[1749317935922,4.88905815,105610.0,105600.0,0.03187702]
[1749317936779,4.86061623,105610.0,105600.0,0.03187702]
[1749317937000,4.86465728,105610.0,105600.0,0.03187702]
[1749317937257,4.83621943,105610.0,105600.0,0.03187702]
[1749317937466,4.86061582,105610.0,105600.0,0.03187702]
[1749317937659,4.86061628,105610.0,105600.0,0.03187702]
[1749317938123,4.86061592,105610.0,105600.0,0.03187702]
[1749317938580,4.86061536,105610.0,105600.0,0.03187702]
[1749317938814,4.84287256,105610.0,105600.0,0.03187702]
[1749317939026,4.83621943,105610.0,105600.0,0.03187702]
[1749317939238,4.85396111,105610.0,105600.0,0.03187702]
[1749317939444,4.86061424,105610.0,105600.0,0.03187702]
[1749317940227,4.86061432,105610.0,105600.0,0.03187702]
[1749317941080,4.8713106,105610.0,105600.0,0.03187702]
[1749317941287,4.87131062,105610.0,105600.0,0.03187702]
[1749317941497,4.88905287,105610.0,105600.0,0.03187702]
[1749317942110,4.86465728,105610.0,105600.0,0.03187702]
[1749317942335,4.88239954,105610.0,105600.0,0.03187703]
[1749317942535,4.88905283,105610.0,105600.0,0.03187703]
[1749317942755,4.88239954,105610.0,105600.0,0.03187703]
[1749317942960,4.88905242,105610.0,105600.0,0.03187703]
[1749317943145,4.88905127,105610.0,105600.0,0.03187703]
[1749317943378,4.88239839,105610.0,105600.0,0.03187703]
[1749317943626,4.87131019,105610.0,105600.0,0.03187703]
[1749317943834,4.86465728,105610.0,105600.0,0.03187703]
[1749317944041,4.88905123,105610.0,105600.0,0.03187703]
[1749317944841,4.88905117,105610.0,105600.0,0.03187703]
[1749317945049,4.87131016,105610.0,105600.0,0.03187703]
[1749317945261,4.88239814,105610.0,105600.0,0.03187703]
[1749317945479,4.88905126,105610.0,105600.0,0.03187703]
[1749317945692,4.88905173,105610.0,105600.0,0.03187703]
[1749317945901,4.85392727,105610.0,105600.0,0.03187703]
[1749317946169,4.83618728,105610.0,105600.0,0.03187703]
[1749317946706,4.86057976,105610.0,105600.0,0.03187703]
[1749317946958,4.84283975,105610.0,105600.0,0.03187703]
[1749317947211,4.84283973,105610.0,105600.0,0.03187703]
[1749317947455,4.85392703,105610.0,105600.0,0.03187703]
[1749317947670,4.84283974,105610.0,105600.0,0.03187703]
[1749317948140,4.83618728,105610.0,105600.0,0.03187703]
[1749317948349,4.86057958,105610.0,105600.0,0.03187703]
[1749317948583,4.84283972,105610.0,105600.0,0.03187703]
[1749317948824,4.83618728,105610.0,105600.0,0.03187703]
[1749317949035,4.83214103,105610.0,105600.0,0.03187703]
[1749317949239,4.83214101,105610.0,105600.0,0.03187703]
[1749317949445,4.83214113,105610.0,105600.0,0.03187703]
[1749317949650,4.86057945,105610.0,105600.0,0.03187703]
[1749317949855,4.83618728,105610.0,105600.0,0.03187703]
[1749317950699,4.85392614,105610.0,105600.0,0.03187703]
[1749317950909,4.84283935,105610.0,105600.0,0.03187703]
[1749317951111,4.83214039,105610.0,105600.0,0.03187703]
[1749317951335,4.83618728,105610.0,105600.0,0.03187703]
[1749317951542,4.84283936,105610.0,105600.0,0.03187703]
[1749317951748,4.83618728,105610.0,105600.0,0.03187703]
[1749317952157,4.86057806,105610.0,105600.0,0.03187703]
[1749317952580,4.83618728,105610.0,105600.0,0.03187703]
[1749317952801,4.86057806,105610.0,105600.0,0.03187703]
[1749317953018,4.83618728,105610.0,105600.0,0.03187703]
[1749317953234,4.853926,105610.0,105600.0,0.03187703]
[1749317953466,4.8605781,105610.0,105600.0,0.03187703]
[1749317953883,4.86058087,105610.0,105600.0,0.03187703]
[1749317954117,4.86058185,105610.0,105600.0,0.03187703]
[1749317954331,4.85392878,105610.0,105600.0,0.03187703]
[1749317954539,4.85392868,105610.0,105600.0,0.03187704]
[1749317954757,4.84284182,105610.0,105600.0,0.03187704]
[1749317954974,4.85393274,105610.0,105600.0,0.03187704]
[1749317955199,4.83618728,105610.0,105600.0,0.03187704]
[1749317955411,4.82549442,105610.0,105600.0,0.03187704]
[1749317955625,4.81440379,105610.0,105600.0,0.03187704]
[1749317955839,4.82549439,105610.0,105600.0,0.03187704]
[1749317956059,4.83214873,105610.0,105600.0,0.03187704]
[1749317956298,4.81440375,105610.0,105600.0,0.03187704]
[1749317956520,4.83214861,105610.0,105600.0,0.03187704]
[1749317956737,4.82549429,105610.0,105600.0,0.03187704]
[1749317956955,4.80774943,105610.0,105600.0,0.03187704]
[1749317957174,4.81440374,105610.0,105600.0,0.03187704]
[1749317957619,4.81441025,105610.0,105600.0,0.03187704]
[1749317957829,4.83217244,105610.0,105600.0,0.03187704]
[1749317958042,4.80774943,105610.0,105600.0,0.03187704]
[1749317958256,4.83217244,105610.0,105600.0,0.03187704]
[1749317958654,4.81441025,105610.0,105600.0,0.03187704]
[1749317958932,4.80774943,105610.0,105600.0,0.03187704]
[1749317959145,4.82551162,105610.0,105600.0,0.03187704]
[1749317959357,4.86061053,105610.0,105600.0,0.03187704]
[1749317959578,4.86061048,105610.0,105600.0,0.03187704]
[1749317959816,4.83618728,105610.0,105600.0,0.03187704]
[1749317960053,4.85394972,105610.0,105600.0,0.03187704]
[1749317960277,4.86061061,105610.0,105600.0,0.03187704]
[1749317960489,4.83618728,105610.0,105600.0,0.03187704]
[1749317960702,4.84284821,105610.0,105600.0,0.03187704]
[1749317960915,4.84284955,105610.0,105600.0,0.03187704]
[1749317961133,4.86061562,105610.0,105600.0,0.03187704]
[1749317961339,4.84284957,105610.0,105600.0,0.03187704]
[1749317961774,4.86061562,105610.0,105600.0,0.03187704]
[1749317962015,4.84284957,105610.0,105600.0,0.03187704]
[1749317962437,4.86061575,105610.0,105600.0,0.03187704]
[1749317962648,4.8606159,105610.0,105600.0,0.03187704]
[1749317962853,4.86061602,105610.0,105600.0,0.03187704]
[1749317963270,4.86061606,105610.0,105600.0,0.03187704]
[1749317963480,4.85395366,105610.0,105600.0,0.03187704]
[1749317963707,4.86061602,105610.0,105600.0,0.03187704]
[1749317963887,4.83618728,105610.0,105600.0,0.03187704]
[1749317964139,4.84284966,105610.0,105600.0,0.03187704]
[1749317964345,4.83618728,105610.0,105600.0,0.03187704]
[1749317964761,4.84284966,105610.0,105600.0,0.03187704]
[1749317964973,4.86061618,105610.0,105600.0,0.03187704]
[1749317965177,4.83618728,105610.0,105600.0,0.03187704]
[1749317965415,4.84284968,105610.0,105600.0,0.03187704]
[1749317965625,4.83618728,105610.0,105600.0,0.03187704]
[1749317965832,4.84284965,105610.0,105600.0,0.03187704]
[1749317966038,4.83618728,105610.0,105600.0,0.03187704]
[1749317966264,4.86061302,105610.0,105600.0,0.03187704]
[1749317966761,4.86061314,105610.0,105600.0,0.03187704]
[1749317966975,4.85395156,105610.0,105600.0,0.03187704]
[1749317967402,4.86061301,105610.0,105600.0,0.03187704]
[1749317967633,4.8539516,105610.0,105600.0,0.03187704]
[1749317967849,4.86061308,105610.0,105600.0,0.03187704]
[1749317968064,4.86061301,105610.0,105600.0,0.03187704]
[1749317968905,4.84284884,105610.0,105600.0,0.03187704]
[1749317969113,4.84285231,105610.0,105600.0,0.03187704]
[1749317969337,4.84285223,105610.0,105600.0,0.03187704]
[1749317969546,4.85396049,105610.0,105600.0,0.03187704]
[1749317969752,4.83618728,105610.0,105600.0,0.03187704]
[1749317969965,4.84285058,105610.0,105600.0,0.03187704]
[1749317970174,4.85395616,105610.0,105600.0,0.03187704]
[1749317970588,4.86061938,105610.0,105600.0,0.03187704]
[1749317970800,4.84285057,105610.0,105600.0,0.03187704]
[1749317971006,4.85395606,105610.0,105600.0,0.03187704]
[1749317971212,4.86061935,105610.0,105600.0,0.03187704]
[1749317971421,4.85395602,105610.0,105600.0,0.03187704]
[1749317971665,4.86061928,105610.0,105600.0,0.03187704]
[1749317971899,4.85395604,105610.0,105600.0,0.03187705]
[1749317972138,4.84285051,105610.0,105600.0,0.03187705]